bitfinex/quotes_BTCUSD_20250412
["timestamp","ask_amount","ask_price","bid_price","bid_amount"]
[1744451430817,0.72219422,83585.0,83584.0,3.8e-07]
[1744451431038,0.60146574,83585.0,83584.0,3.8e-07]
[1744451431718,0.59764911,83585.0,83584.0,3.8e-07]
[1744451432129,1.01644373,83585.0,83584.0,3.8e-07]
[1744451433205,1.16184373,83585.0,83584.0,3.8e-07]
[1744451436642,1.20684373,83585.0,83584.0,3.8e-07]
[1744451436850,1.32757221,83585.0,83584.0,3.8e-07]
[1744451437448,1.20684373,83585.0,83584.0,3.8e-07]
[1744451437606,1.22138458,83585.0,83584.0,3.8e-07]
[1744451437810,1.56138458,83585.0,83584.0,3.8e-07]
[1744451453730,1.68728458,83585.0,83584.0,3.8e-07]
[1744451453969,1.68828458,83585.0,83584.0,3.8e-07]
[1744451454266,1.80901306,83585.0,83584.0,3.8e-07]
[1744451454547,1.81524932,83585.0,83584.0,3.8e-07]
[1744451463273,1.9151723,83585.0,83584.0,3.8e-07]
[1744451464380,1.94867711,83585.0,83584.0,3.8e-07]
[1744451464591,1.9151723,83585.0,83584.0,3.8e-07]
[1744451464727,1.7697723,83585.0,83584.0,3.8e-07]
[1744451464927,1.9469539,83585.0,83584.0,3.8e-07]
[1744451466470,1.9134523,83585.0,83584.0,3.8e-07]
[1744451466988,1.94695275,83585.0,83584.0,3.8e-07]
[1744451468071,1.9134523,83585.0,83584.0,3.8e-07]
[1744451468682,1.9469563,83585.0,83584.0,3.8e-07]
[1744451469134,1.9134523,83585.0,83584.0,3.8e-07]
[1744451469344,1.9469578,83585.0,83584.0,3.8e-07]
[1744451471809,1.9134523,83585.0,83584.0,3.8e-07]
[1744451472006,1.94696063,83585.0,83584.0,3.8e-07]
[1744451475559,0.239363,83555.0,83554.0,0.0455]
[1744451475770,0.239363,83555.0,83550.0,0.0008442]
[1744451475771,0.239374,83551.0,83550.0,0.0008442]
[1744451475985,0.42167302,83551.0,83550.0,0.0008442]
[1744451476360,0.42629561,83551.0,83550.0,0.0008442]
[1744451476810,0.42629561,83551.0,83550.0,0.00131145]
[1744451478548,0.43849977,83551.0,83550.0,0.00131145]
[1744451479731,0.44766494,83551.0,83550.0,0.00131145]
[1744451483678,0.56850648,83551.0,83550.0,0.00131145]
[1744451484119,0.68923496,83551.0,83550.0,0.00131145]
[1744451485867,0.68923496,83551.0,83550.0,4.5e-07]
[1744451486409,0.56850648,83551.0,83550.0,4.5e-07]
[1744451486626,0.58304733,83551.0,83550.0,4.5e-07]
[1744451486845,0.58304733,83551.0,83535.0,0.0473436]
[1744451486846,0.239417,83536.0,83535.0,5e-08]
[1744451487064,0.40171602,83536.0,83535.0,9.3e-07]
[1744451487194,0.40624491,83536.0,83535.0,9.3e-07]
[1744451487411,0.94588107,83536.0,83535.0,9.3e-07]
[1744451488470,0.94588107,83536.0,83534.0,5.3e-07]
[1744451488722,0.94588107,83536.0,83534.0,7.6e-07]
[1744451488723,0.12314056,83535.0,83534.0,7.6e-07]
[1744451488939,0.29868141,83535.0,83534.0,7.6e-07]
[1744451489153,0.30320882,83535.0,83534.0,7.6e-07]
[1744451489371,0.30320882,83535.0,83506.0,0.09103536]
[1744451489372,0.2395,83507.0,83506.0,9.2e-07]
[1744451489584,0.53264056,83507.0,83506.0,9.2e-07]
[1744451489798,0.53713524,83507.0,83506.0,9.2e-07]
[1744451490683,0.53713524,83507.0,83501.0,0.0008436]
[1744451490888,0.00229902,83506.0,83501.0,0.0008436]
[1744451491112,0.17229902,83506.0,83501.0,0.0008436]
[1744451491349,0.17909272,83506.0,83501.0,0.0008436]
[1744451496269,0.19086362,83506.0,83501.0,0.0008436]
[1744451498440,0.73049978,83506.0,83501.0,0.0008436]
[1744451498591,0.72820076,83506.0,83501.0,0.0008436]
[1744451499695,0.59558832,83506.0,83501.0,0.0008436]
[1744451499954,0.59558832,83506.0,83505.0,0.069]
[1744451501360,0.59558832,83506.0,83505.0,0.02]
[1744451502437,0.1767937,83506.0,83505.0,0.02]
[1744451502639,0.17909272,83506.0,83505.0,0.02]
[1744451515720,0.239512,83503.0,83501.0,0.0008436]
[1744451515945,0.239538,83494.0,83492.0,2e-07]
[1744451516128,0.00229902,83493.0,83492.0,2e-07]
[1744451516335,0.18885106,83493.0,83492.0,2e-07]
[1744451522793,0.18885106,83493.0,83485.0,8e-07]
[1744451522794,0.01454085,83487.0,83485.0,8e-07]
[1744451523071,0.78149618,83486.0,83485.0,8e-07]
[1744451523281,0.95571923,83486.0,83485.0,8e-07]
[1744451525357,0.96491507,83486.0,83485.0,8e-07]
[1744451526444,1.0425977,83486.0,83485.0,8e-07]
[1744451526664,0.97945592,83486.0,83485.0,8e-07]
[1744451527801,1.02905592,83486.0,83485.0,8e-07]
[1744451530691,1.36905592,83486.0,83485.0,8e-07]
[1744451531315,1.51149592,83486.0,83485.0,8e-07]
[1744451536492,1.51772367,83486.0,83485.0,8e-07]
[1744451538074,1.45358282,83486.0,83485.0,8e-07]
[1744451542884,1.19030128,83486.0,83485.0,8e-07]
[1744451543545,0.77150666,83486.0,83485.0,8e-07]
[1744451543728,0.43150666,83486.0,83485.0,8e-07]
[1744451552349,0.43150666,83486.0,83485.0,0.0969008]
[1744451552350,0.18274982,83486.0,83485.0,0.0969008]
[1744451552584,0.00652207,83486.0,83485.0,0.0969008]
[1744451553049,0.251524,83491.0,83487.0,0.011977]
[1744451553782,0.251524,83491.0,83485.0,0.0969008]
[1744451553783,0.011977,83489.0,83485.0,0.0969008]
[1744451554217,0.011977,83489.0,83485.0,0.1088788]
[1744451555017,0.011977,83489.0,83486.0,0.011978]
[1744451556227,0.011977,83489.0,83485.0,0.1088788]
[1744451556585,0.011977,83489.0,83485.0,0.3484398]
[1744451558218,0.011977,83489.0,83485.0,0.1088788]
[1744451558952,0.251531,83489.0,83485.0,0.1088788]
[1744451560233,0.00593472,83488.0,83485.0,0.3484408]
[1744451560452,0.00229902,83487.0,83485.0,8e-07]
[1744451560682,0.239561,83486.0,83485.0,8e-07]
[1744451560954,0.399561,83486.0,83485.0,8e-07]
[1744451561129,0.40549572,83486.0,83485.0,8e-07]
[1744451562576,0.24549572,83486.0,83485.0,8e-07]
[1744451562779,0.24779474,83486.0,83485.0,8e-07]
[1744451567811,0.40779474,83486.0,83485.0,8e-07]
[1744451568013,0.40549572,83486.0,83485.0,8e-07]
[1744451582230,0.50199572,83486.0,83485.0,8e-07]
[1744451583262,0.51097729,83486.0,83485.0,8e-07]
[1744451584961,0.64359584,83486.0,83485.0,8e-07]
[1744451587412,0.65813669,83486.0,83485.0,8e-07]
[1744451587650,1.07693131,83486.0,83485.0,8e-07]
[1744451588752,1.41693131,83486.0,83485.0,8e-07]
[1744451591460,1.55725131,83486.0,83485.0,8e-07]
[1744451591874,1.67797979,83486.0,83485.0,8e-07]
[1744451592732,1.55725131,83486.0,83485.0,8e-07]
[1744451593549,1.56347543,83486.0,83485.0,8e-07]
[1744451597265,1.42315543,83486.0,83485.0,8e-07]
[1744451597476,1.56351543,83486.0,83485.0,8e-07]
[1744451599666,0.579572,83482.0,83481.0,8e-07]
[1744451599868,0.96855439,83482.0,83481.0,8e-07]
[1744451600065,0.97434967,83482.0,83481.0,8e-07]
[1744451601973,0.95980882,83482.0,83481.0,8e-07]
[1744451602183,1.10016882,83482.0,83481.0,8e-07]
[1744451605321,1.51896344,83482.0,83481.0,8e-07]
[1744451610919,1.28500344,83482.0,83481.0,8e-07]
[1744451611797,0.8241619,83482.0,83481.0,8e-07]
[1744451614158,0.40536728,83482.0,83481.0,8e-07]
[1744451649532,1.50213192,83482.0,83481.0,8e-07]
[1744451649969,1.38140344,83482.0,83481.0,8e-07]
[1744451651360,1.2605619,83482.0,83481.0,8e-07]
[1744451652296,1.2117619,83482.0,83481.0,8e-07]
[1744451652516,0.40536728,83482.0,83481.0,8e-07]
[1744451655083,0.45326728,83482.0,83481.0,8e-07]
[1744451657921,0.40536728,83482.0,83481.0,8e-07]
[1744451659694,0.40820704,83482.0,83481.0,8e-07]
[1744451663560,0.16863504,83482.0,83481.0,8e-07]
[1744451663731,0.16863504,83482.0,83481.0,0.12084234]
[1744451663969,0.16863504,83482.0,83481.0,0.1283259]
[1744451664187,0.16,83482.0,83481.0,0.1283259]
[1744451664602,0.16859723,83482.0,83481.0,0.1283259]
[1744451665033,0.16859723,83482.0,83481.0,0.3679009]
[1744451665465,0.16,83482.0,83481.0,0.3679009]
[1744451665873,0.16859723,83482.0,83481.0,0.3679009]
[1744451667958,0.16,83482.0,83481.0,0.3679009]
[1744451668514,0.359239,83510.0,83481.0,0.3679009]
[1744451668515,0.011976,83495.0,83491.0,0.011977]
[1744451668711,0.011976,83495.0,83487.0,0.011977]
[1744451668712,0.011977,83492.0,83488.0,0.011977]
[1744451668913,0.011977,83492.0,83489.0,0.011977]
[1744451669119,0.011977,83492.0,83489.0,0.01946056]
[1744451669324,0.2482151,83491.0,83489.0,0.00748356]
[1744451669508,0.0086691,83491.0,83489.0,0.00748356]
[1744451669677,0.0086691,83491.0,83490.0,0.00748356]
[1744451669944,0.251518,83493.0,83490.0,0.00748356]
[1744451670112,0.0086691,83491.0,83490.0,0.00748356]
[1744451670341,0.251518,83493.0,83490.0,0.00748356]
[1744451670514,0.0086691,83491.0,83490.0,0.00748356]
[1744451670684,0.251518,83493.0,83490.0,0.00748356]
[1744451670880,0.2482151,83491.0,83490.0,0.00748356]
[1744451671140,0.0086691,83491.0,83490.0,0.00748356]
[1744451671451,0.239549,83490.0,83488.0,0.00748356]
[1744451671850,0.00879089,83489.0,83488.0,0.00748356]
[1744451673834,0.00879089,83489.0,83487.0,0.00748356]
[1744451674033,0.00879089,83489.0,83487.0,0.1283251]
[1744451674536,0.00879089,83489.0,83487.0,0.12084154]
[1744451674709,0.239555,83488.0,83487.0,0.12084154]
[1744451675178,0.24834559,83488.0,83487.0,0.12084154]
[1744451675589,0.239563,83485.0,83484.0,0.13984]
[1744451675804,0.239563,83485.0,83484.0,0.26068154]
[1744451676031,0.239569,83483.0,83482.0,0.00748356]
[1744451676255,0.399569,83483.0,83482.0,0.00748356]
[1744451676464,0.239569,83483.0,83481.0,8e-07]
[1744451676665,0.41836009,83483.0,83481.0,8e-07]
[1744451676878,0.24836009,83483.0,83481.0,8e-07]
[1744451678016,0.41836009,83483.0,83481.0,8e-07]
[1744451689660,0.41836009,83483.0,83482.0,0.00748356]
[1744451693686,0.46706009,83483.0,83481.0,8e-07]
[1744451693914,0.00229902,83482.0,83481.0,8e-07]
[1744451694151,0.22739902,83482.0,83481.0,8e-07]
[1744451694336,0.23615889,83482.0,83481.0,8e-07]
[1744451700878,0.23385987,83482.0,83481.0,8e-07]
[1744451701079,0.23615889,83482.0,83481.0,8e-07]
[1744451702753,0.23615889,83482.0,83481.0,0.0005908]
[1744451704864,0.23321191,83482.0,83481.0,0.0005908]
[1744451711512,0.23321191,83482.0,83481.0,8e-07]
[1744451711513,0.40015443,83482.0,83481.0,8e-07]
[1744451711741,0.40302666,83482.0,83481.0,8e-07]
[1744451714557,0.40302666,83482.0,83471.0,0.0008444]
[1744451714558,0.011979,83479.0,83471.0,0.0008444]
[1744451714795,0.12314056,83478.0,83471.0,0.0008444]
[1744451715009,0.31314056,83478.0,83471.0,0.0008444]
[1744451715205,0.00868513,83477.0,83471.0,0.0008444]
[1744451715329,0.17868513,83477.0,83471.0,0.0008444]
[1744451715783,0.17873176,83477.0,83471.0,0.0008444]
[1744451716436,0.18103078,83477.0,83471.0,0.0008444]
[1744451716842,0.19284704,83477.0,83471.0,0.0008444]
[1744451721681,0.24124704,83477.0,83471.0,0.0008444]
[1744451723910,0.17873176,83477.0,83471.0,0.0008444]
[1744451739503,0.34917232,83477.0,83471.0,0.0008444]
[1744451739701,0.3468733,83477.0,83471.0,0.0008444]
[1744451740091,0.3468733,83477.0,83476.0,1e-06]
[1744451743060,0.76566792,83477.0,83476.0,1e-06]
[1744451750636,0.59752638,83477.0,83476.0,1e-06]
[1744451754749,0.17873176,83477.0,83476.0,1e-06]
[1744451754986,0.18103078,83477.0,83476.0,1e-06]
[1744451759088,0.17873176,83477.0,83476.0,1e-06]
[1744451761330,0.18103078,83477.0,83476.0,1e-06]
[1744451762589,0.27943078,83477.0,83476.0,1e-06]
[1744451762797,0.27713176,83477.0,83476.0,1e-06]
[1744451763767,0.17873176,83477.0,83476.0,1e-06]
[1744451764000,0.18103078,83477.0,83476.0,1e-06]
[1744451765117,0.27723078,83477.0,83476.0,1e-06]
[1744451765316,0.27493176,83477.0,83476.0,1e-06]
[1744451766945,0.17873176,83477.0,83476.0,1e-06]
[1744451790706,0.17873176,83477.0,83476.0,0.00748572]
[1744451792535,0.00873176,83477.0,83476.0,0.00748572]
[1744451792954,0.00873176,83477.0,83476.0,0.24707472]
[1744451793136,0.00873176,83477.0,83476.0,0.00748572]
[1744451793479,0.00667673,83477.0,83476.0,0.00748572]
[1744451816724,0.00667673,83477.0,83476.0,1e-06]
[1744451818037,0.00667673,83477.0,83476.0,0.00748513]
[1744451829366,0.00667673,83477.0,83476.0,0.00548513]
[1744451830001,0.00667673,83477.0,83476.0,0.24507413]
[1744451830363,0.00667673,83477.0,83476.0,0.24881616]
[1744451832439,0.00667673,83477.0,83476.0,0.3696577]
[1744451832894,4.663e-05,83477.0,83476.0,0.3696577]
[1744451833338,4.663e-05,83477.0,83476.0,0.7588577]
[1744451834750,4.663e-05,83477.0,83476.0,0.75511567]
[1744451835848,4.663e-05,83477.0,83476.0,0.89463567]
[1744451838088,4.663e-05,83477.0,83476.0,0.84543567]
[1744451842885,4.663e-05,83477.0,83476.0,0.83995054]
[1744451863713,4.663e-05,83477.0,83476.0,0.70043054]
[1744451863991,4.663e-05,83477.0,83476.0,0.83995054]
[1744451874762,4.663e-05,83477.0,83476.0,0.70043054]
[1744451926098,4.663e-05,83477.0,83476.0,0.60043054]
[1744451954451,6.3e-07,83477.0,83476.0,1.10326785]
[1744451954664,6.3e-07,83477.0,83476.0,1.14956785]
[1744451954903,0.000844,83511.0,83509.0,0.239494]
[1744451955312,0.000844,83511.0,83508.0,0.011974]
[1744451955313,0.00463456,83510.0,83508.0,0.011974]
[1744451956320,0.00463456,83510.0,83507.0,0.239498]
[1744451956505,0.00463456,83510.0,83507.0,0.37231454]
[1744451957346,0.00463456,83510.0,83507.0,0.13281654]
[1744451960673,0.24412856,83510.0,83507.0,0.12084154]
[1744451960887,0.25610256,83510.0,83507.0,0.12084154]
[1744451962978,0.011975,83505.0,83502.0,0.13936]
[1744451963184,0.011975,83505.0,83503.0,0.12084154]
[1744451963422,0.011975,83505.0,83502.0,0.13936]
[1744451963640,0.00474183,83504.0,83502.0,0.26020154]
[1744451964856,0.24425283,83504.0,83502.0,0.26020154]
[1744451967319,0.24655185,83504.0,83502.0,0.13936]
[1744451967525,0.060976,83496.0,83493.0,0.74819878]
[1744451967728,0.30051,83496.0,83494.0,0.12084154]
[1744451967938,0.004831,83495.0,83494.0,0.12084154]
[1744451968358,0.004831,83495.0,83493.0,0.74819878]
[1744451968567,0.244368,83495.0,83493.0,0.40819878]
[1744451968778,0.24666702,83495.0,83493.0,0.40819878]
[1744451968986,0.35666702,83495.0,83493.0,0.40819878]
[1744451969201,0.414368,83495.0,83493.0,0.40819878]
[1744451969421,0.404368,83495.0,83493.0,0.40819878]
[1744451969612,0.394368,83495.0,83493.0,0.40819878]
[1744451969873,0.244368,83495.0,83493.0,0.40819878]
[1744451970104,0.049,83494.0,83493.0,0.40819878]
[1744451970355,0.069,83494.0,83493.0,0.40819878]
[1744451970596,0.0737804,83494.0,83493.0,0.40819878]
[1744451971702,0.011978,83484.0,83481.0,1.383698]
[1744451971908,0.011978,83484.0,83481.0,1.50453954]
[1744451972544,0.011978,83484.0,83481.0,1.49256154]
[1744451972784,0.239569,83483.0,83481.0,1.49256154]
[1744451972990,0.239569,83483.0,83481.0,1.49270177]
[1744451973181,0.0047804,83482.0,83481.0,1.49270177]
[1744451976439,0.0047804,83482.0,83481.0,1.35566077]
[1744451978178,0.251547,83484.0,83481.0,1.35566077]
[1744451979990,0.00467894,83483.0,83481.0,1.35566077]
[1744451980193,0.00467894,83483.0,83481.0,0.12326077]
[1744451986061,0.24424994,83483.0,83481.0,0.12326077]
[1744451988677,0.00467894,83483.0,83481.0,0.12326077]
[1744451989269,0.251543,83485.0,83481.0,0.12326077]
[1744451989470,0.011978,83484.0,83481.0,0.12326077]
[1744451989677,0.00462129,83483.0,83481.0,0.12326077]
[1744451990691,0.24419229,83483.0,83481.0,0.12326077]
[1744451997200,0.00462129,83483.0,83481.0,0.12326077]
[1744452001017,0.00462129,83483.0,83481.0,0.36283377]
[1744452001462,0.00462129,83483.0,83481.0,0.12326077]
[1744452001858,0.00462129,83483.0,83481.0,0.36283377]
[1744452002264,0.00462129,83483.0,83482.0,0.12084154]
[1744452007086,0.239572,83482.0,83481.0,0.00241923]
[1744452007303,0.239572,83482.0,83481.0,0.12326077]
[1744452007484,0.239572,83482.0,83481.0,0.00241923]
[1744452008904,0.24187102,83482.0,83481.0,0.00241923]
[1744452009105,0.46907102,83482.0,83481.0,0.00241923]
[1744452009328,0.515372,83482.0,83481.0,0.00241923]
[1744452009741,0.63621354,83482.0,83481.0,2.3e-07]
[1744452009970,0.579601,83472.0,83471.0,0.0008444]
[1744452010192,0.833901,83472.0,83471.0,0.00097894]
[1744452014757,0.84270439,83472.0,83471.0,0.00097894]
[1744452017704,0.84718098,83472.0,83471.0,0.00097894]
[1744452018534,0.84718098,83472.0,83471.0,9.4e-07]
[1744452018535,1.38681714,83472.0,83471.0,9.4e-07]
[1744452022231,1.38519732,83472.0,83471.0,9.4e-07]
[1744452023897,1.38501609,83472.0,83471.0,9.4e-07]
[1744452025391,1.38644386,83472.0,83471.0,9.4e-07]
[1744452028679,1.50717234,83472.0,83471.0,9.4e-07]
[1744452029512,1.38644386,83472.0,83471.0,9.4e-07]
[1744452030187,1.52568386,83472.0,83471.0,9.4e-07]
[1744452036863,1.52568386,83472.0,83471.0,9.4e-07]
[1744452052408,1.54022471,83472.0,83471.0,9.4e-07]
[1744452053036,0.011982,83454.0,83451.0,8.4e-07]
[1744452053305,0.579658,83452.0,83451.0,0.00046864]
[1744452053557,0.87049954,83452.0,83451.0,0.00046864]
[1744452054000,0.87476949,83452.0,83451.0,0.00046864]
[1744452067018,0.97343351,83452.0,83451.0,0.00046864]
[1744452068866,0.87476949,83452.0,83451.0,0.00046864]
[1744452074000,0.75392795,83452.0,83451.0,0.00046864]
[1744452080020,0.92226949,83452.0,83451.0,0.00046864]
[1744452080274,0.92226949,83452.0,83447.0,1.4e-07]
[1744452080275,0.23967,83448.0,83447.0,1.4e-07]
[1744452080511,0.23967,83448.0,83443.0,1.4e-07]
[1744452080512,0.011983,83446.0,83443.0,1.4e-07]
[1744452080779,0.34,83444.0,83443.0,4.677e-05]
[1744452081038,0.64084154,83444.0,83443.0,4.677e-05]
[1744452081257,0.64361983,83444.0,83443.0,4.677e-05]
[1744452081804,0.88330083,83444.0,83443.0,4.677e-05]
[1744452083131,0.89249245,83444.0,83443.0,4.677e-05]
[1744452083526,0.89249245,83444.0,83442.0,7.7e-07]
[1744452083527,0.01454085,83443.0,83442.0,7.7e-07]
[1744452083882,0.65768141,83443.0,83442.0,7.7e-07]
[1744452084083,0.287198,83438.0,83437.0,9.7e-07]
[1744452084321,0.71719954,83438.0,83437.0,0.00014126]
[1744452084575,0.72131462,83438.0,83437.0,0.00014126]
[1744452085219,1.60083772,83438.0,83437.0,0.00014126]
[1744452085677,1.48010924,83438.0,83437.0,0.00014126]
[1744452086571,1.49465009,83438.0,83437.0,2.6e-07]
[1744452087053,1.50676916,83438.0,83437.0,2.6e-07]
[1744452093434,1.55416916,83438.0,83437.0,2.6e-07]
[1744452094051,1.55270097,83438.0,83437.0,2.6e-07]
[1744452094252,1.67342945,83438.0,83437.0,2.6e-07]
[1744452095335,1.69582899,83438.0,83437.0,2.6e-07]
[1744452096199,1.69682899,83438.0,83437.0,2.6e-07]
[1744452096405,0.579742,83423.0,83422.0,0.02]
[1744452096610,1.41857816,83423.0,83422.0,0.02]
[1744452097024,1.43369984,83423.0,83422.0,0.02]
[1744452097180,1.46487664,83423.0,83422.0,0.02]
[1744452098244,1.45368022,83423.0,83422.0,0.02]
[1744452100074,1.50038022,83423.0,83422.0,0.02]
[1744452101327,0.579756,83418.0,83408.0,0.000422]
[1744452101508,0.87059754,83418.0,83408.0,0.000422]
[1744452101816,0.89689826,83418.0,83408.0,0.000422]
[1744452102254,1.31569288,83418.0,83408.0,0.000422]
[1744452104585,1.19485134,83418.0,83408.0,0.000422]
[1744452104822,1.19485134,83418.0,83411.0,0.0454]
[1744452104823,1.33401134,83418.0,83411.0,0.0454]
[1744452105035,0.85485134,83418.0,83411.0,0.0454]
[1744452105247,0.85485134,83418.0,83417.0,0.0458222]
[1744452105464,0.8324518,83418.0,83417.0,0.0458222]
[1744452106617,0.41365718,83418.0,83417.0,0.0458222]
[1744452108286,0.41365718,83418.0,83417.0,0.0004222]
[1744452116683,0.41365718,83418.0,83417.0,0.0495222]
[1744452119681,0.00390118,83418.0,83417.0,0.0495222]
[1744452119883,0.011987,83420.0,83417.0,0.0495222]
[1744452120110,0.00389429,83419.0,83417.0,0.0495222]
[1744452120326,0.011987,83420.0,83417.0,0.0495222]
[1744452120684,0.00389429,83419.0,83417.0,0.0495222]
[1744452121522,0.00389429,83419.0,83418.0,0.0464]
[1744452121750,0.00389429,83419.0,83418.0,0.21873897]
[1744452121995,0.011985,83433.0,83429.0,0.0491]
[1744452122216,0.01428402,83432.0,83429.0,0.0491]
[1744452122443,0.07343764,83432.0,83429.0,0.0491]
[1744452122690,0.07343764,83432.0,83429.0,0.061086]
[1744452123818,0.07343764,83432.0,83429.0,0.300808]
[1744452124021,0.239724,83430.0,83425.0,0.011986]
[1744452124244,0.011986,83429.0,83423.0,0.251727]
[1744452124461,0.011986,83428.0,83424.0,0.011986]
[1744452124684,0.25515264,83428.0,83424.0,0.011986]
[1744452125175,0.00343764,83428.0,83425.0,0.25172]
[1744452129961,0.24316564,83428.0,83425.0,0.011986]
[1744452130243,0.25745066,83428.0,83424.0,0.011986]
[1744452130466,0.25515164,83428.0,83424.0,0.011986]
[1744452130685,0.41515164,83428.0,83424.0,0.011986]
[1744452130912,0.25515164,83428.0,83424.0,0.011986]
[1744452131557,0.011986,83427.0,83424.0,0.011986]
[1744452132243,0.00343764,83426.0,83424.0,0.011986]
[1744452132710,0.00343764,83426.0,83424.0,0.251723]
[1744452132913,0.011986,83428.0,83424.0,0.251723]
[1744452133127,0.00343764,83427.0,83424.0,0.251723]
[1744452134080,0.01542364,83427.0,83422.0,0.011987]
[1744452134280,0.239733,83426.0,83422.0,0.011987]
[1744452134716,0.00343764,83425.0,83422.0,0.011987]
[1744452134930,0.00343764,83425.0,83422.0,0.251729]
[1744452135380,0.251718,83427.0,83422.0,0.251729]
[1744452135594,0.00343764,83424.0,83422.0,0.251729]
[1744452135740,0.011986,83426.0,83422.0,0.251729]
[1744452135961,0.00343764,83423.0,83422.0,0.251729]
[1744452136155,0.011986,83425.0,83418.0,0.011987]
[1744452136156,0.251733,83422.0,83418.0,0.011987]
[1744452136461,0.00347631,83421.0,83418.0,0.251741]
[1744452137748,0.00347631,83421.0,83418.0,0.251743]
[1744452144893,0.01546331,83421.0,83418.0,0.011987]
[1744452145339,0.00347631,83421.0,83418.0,0.011987]
[1744452145973,0.00347631,83421.0,83418.0,0.251741]
[1744452147826,0.00347631,83421.0,83419.0,0.239751]
[1744452149139,0.00347631,83421.0,83420.0,0.12084154]
[1744452149399,0.00347631,83421.0,83420.0,0.17223891]
[1744452149586,0.00347631,83421.0,83420.0,0.17223881]
[1744452149792,0.011985,83432.0,83428.0,0.011986]
[1744452149951,0.011985,83432.0,83428.0,0.13282754]
[1744452150145,0.00347631,83431.0,83428.0,0.13282754]
[1744452150350,0.01546131,83431.0,83428.0,0.12084154]
[1744452150836,0.239724,83429.0,83428.0,0.12084154]
[1744452151039,0.239724,83429.0,83422.0,0.011987]
[1744452151040,0.011986,83424.0,83420.0,0.23975]
[1744452151251,0.011986,83424.0,83421.0,0.011987]
[1744452151660,0.00351284,83423.0,83421.0,0.251732]
[1744452151877,0.239715,83433.0,83428.0,0.251712]
[1744452152098,0.00351136,83431.0,83429.0,0.011986]
[1744452152303,0.01549636,83431.0,83428.0,0.251712]
[1744452152746,0.01549636,83431.0,83428.0,0.011986]
[1744452152959,0.011986,83430.0,83426.0,0.251718]
[1744452153451,0.011986,83428.0,83423.0,0.251728]
[1744452153668,0.011986,83427.0,83424.0,0.12084154]
[1744452154120,0.00351862,83426.0,83424.0,0.12084154]
[1744452156245,0.00351862,83426.0,83424.0,0.36057954]
[1744452156855,0.251712,83429.0,83425.0,0.011986]
[1744452157055,0.011986,83428.0,83425.0,0.011986]
[1744452157579,0.011986,83427.0,83424.0,0.12084154]
[1744452158080,0.251718,83427.0,83424.0,0.12084154]
[1744452158525,0.239735,83426.0,83424.0,0.12084154]
[1744452158704,0.239733,83426.0,83424.0,0.12084154]
[1744452159118,0.011986,83427.0,83424.0,0.12084154]
[1744452162293,0.251718,83427.0,83424.0,0.12084154]
[1744452163782,0.00352763,83426.0,83424.0,0.12084154]
[1744452166953,0.01052763,83426.0,83424.0,0.12184154]
[1744452169833,0.239736,83425.0,83424.0,0.001]
[1744452170051,0.24203502,83425.0,83424.0,0.001]
[1744452170264,0.239736,83425.0,83424.0,0.001]
[1744452170470,0.24326363,83425.0,83424.0,0.001]
[1744452170769,0.011987,83423.0,83420.0,0.011987]
[1744452171444,0.00352763,83422.0,83420.0,0.011987]
[1744452172771,0.01551463,83422.0,83419.0,0.011987]
[1744452172982,0.01551463,83422.0,83419.0,0.25174]
[1744452173201,0.01551463,83422.0,83420.0,0.001]
[1744452173638,0.01551463,83422.0,83419.0,0.25174]
[1744452174104,0.02051463,83422.0,83419.0,0.25174]
[1744452175546,0.02051463,83422.0,83419.0,0.011987]
[1744452175751,0.02281365,83422.0,83419.0,0.011987]
[1744452176372,0.01340053,83422.0,83419.0,0.011987]
[1744452178240,0.01110151,83422.0,83419.0,0.011987]
[1744452178458,0.02010151,83422.0,83419.0,0.012987]
[1744452179937,0.33804702,83421.0,83419.0,0.001]
[1744452180177,0.515748,83421.0,83419.0,0.001]
[1744452181243,0.00229902,83420.0,83419.0,0.001]
[1744452181451,0.18229902,83420.0,83419.0,0.001]
[1744452181746,0.239753,83419.0,83417.0,0.0004222]
[1744452182053,0.00229902,83418.0,83417.0,0.0004222]
[1744452182206,0.01229902,83418.0,83417.0,0.0004222]
[1744452182657,0.01,83418.0,83417.0,0.0004222]
[1744452182862,0.01229902,83418.0,83417.0,0.0004222]
[1744452183741,0.01,83418.0,83417.0,0.0004222]
[1744452183963,0.015,83418.0,83417.0,0.0004222]
[1744452184888,0.024,83418.0,83417.0,0.0014222]
[1744452185107,0.014,83418.0,83417.0,0.0014222]
[1744452185418,0.194,83418.0,83417.0,0.0014222]
[1744452185827,0.19629902,83418.0,83417.0,0.0014222]
[1744452189840,0.194,83418.0,83417.0,0.0014222]
[1744452193025,0.024,83418.0,83417.0,0.0014222]
[1744452194055,0.014,83418.0,83417.0,0.0014222]
[1744452194267,0.024,83418.0,83417.0,0.0014222]
[1744452194927,0.014,83418.0,83417.0,0.12226374]
[1744452199702,0.014,83418.0,83417.0,0.17176121]
[1744452201530,0.014,83418.0,83417.0,0.16936374]
[1744452202130,0.014,83418.0,83417.0,0.12226374]
[1744452208418,0.014,83418.0,83417.0,0.12466107]
[1744452208636,0.014,83418.0,83417.0,0.12226374]
[1744452216779,0.014,83418.0,83417.0,0.26126374]
[1744452241617,0.009,83418.0,83417.0,0.26126374]
[1744452242029,0.009,83418.0,83417.0,0.61580459]
[1744452242235,0.009,83418.0,83417.0,0.64730357]
[1744452242579,0.0494,83438.0,83435.0,0.011985]
[1744452242782,0.0494,83438.0,83436.0,0.36054554]
[1744452243806,0.0604,83438.0,83436.0,0.36054554]
[1744452243981,0.0664,83438.0,83436.0,0.36154554]
[1744452245329,0.0774,83438.0,83436.0,0.36254554]
[1744452259557,0.028,83438.0,83436.0,0.36254554]
[1744452265179,0.006,83438.0,83436.0,0.36154554]
[1744452265430,0.0499,83445.0,83444.0,0.239681]
[1744452265610,0.0499,83445.0,83444.0,0.36052254]
[1744452266661,0.0559,83445.0,83444.0,0.36152254]
[1744452267550,0.0669,83445.0,83444.0,0.36252254]
[1744452274136,0.306578,83445.0,83444.0,0.002]
[1744452274343,0.316578,83445.0,83444.0,0.002]
[1744452274650,0.0769,83445.0,83444.0,0.002]
[1744452276826,0.07919902,83445.0,83444.0,0.002]
[1744452277217,0.0769,83445.0,83444.0,0.002]
[1744452278801,0.0669,83445.0,83444.0,0.12284154]
[1744452279011,0.0769,83445.0,83444.0,0.12284154]
[1744452292797,0.027,83445.0,83444.0,0.12284154]
[1744452300137,0.027,83445.0,83444.0,0.36252254]
[1744452305542,0.027,83445.0,83444.0,0.12284154]
[1744452307315,0.1209,83445.0,83444.0,0.002]
[1744452307520,0.12319902,83445.0,83444.0,0.002]